bitfinex-derivatives/quotes_ETHF0:USTF0_20250205
["timestamp","ask_amount","ask_price","bid_price","bid_amount"]
[1738774233086,3.2078,2776.4,2776.0,3.2078]
[1738774233282,3.2078,2776.4,2776.1,4.71381565]
[1738774233486,0.00540317,2776.6,2776.1,0.00540317]
[1738774233992,0.00540317,2776.6,2776.3,7.41494127]
[1738774234306,0.00540317,2776.6,2776.4,1.758]
[1738774234493,0.00540317,2776.6,2776.4,6.45012948]
[1738774234805,0.00540317,2776.6,2776.5,0.3608]
[1738774235198,0.00540317,2776.6,2776.5,4.95252847]
[1738774235599,0.00540317,2776.6,2776.5,4.59172847]
[1738774236102,0.00540317,2776.6,2776.4,0.3608]
[1738774236306,0.00540317,2776.6,2776.3,0.3608]
[1738774236596,0.00540317,2776.6,2776.1,0.00540317]
[1738774236994,3.21320317,2776.6,2776.1,0.00540317]
[1738774237496,0.00540317,2776.6,2776.1,0.00540317]
[1738774237703,3.2078,2776.4,2776.1,0.00540317]
[1738774238203,8.2078,2776.4,2774.8,3.2078]
[1738774238400,1.1442,2776.5,2775.3,0.3608]
[1738774238604,3.2078,2776.0,2775.3,0.3608]
[1738774238898,3.2078,2776.0,2775.4,4.76759863]
[1738774239101,3.2078,2776.0,2775.1,3.2078]
[1738774239404,3.2078,2776.1,2775.4,3.2078]
[1738774239705,1.1442,2776.5,2775.4,0.00540317]
[1738774239898,3.2078,2775.8,2775.4,0.00540317]
[1738774241100,3.2078,2775.5,2775.4,0.00540317]
[1738774241402,3.2078,2775.5,2774.7,40.8]
[1738774241598,3.2078,2775.0,2774.3,3.2078]
[1738774241797,3.2078,2774.5,2774.0,3.2078]
[1738774241998,3.2078,2774.9,2774.1,40.8]
[1738774242197,3.2078,2774.5,2774.1,40.8]
[1738774242394,3.2078,2774.5,2773.8,4.56794127]
[1738774242707,3.2078,2774.5,2774.0,0.00540317]
[1738774243005,3.2078,2774.1,2774.0,0.00540317]
[1738774243200,3.2078,2774.1,2773.2,3.2078]
[1738774243406,3.2078,2773.7,2773.2,3.2078]
[1738774244602,3.2078,2773.7,2773.2,0.00540317]
[1738774244805,3.2078,2773.4,2772.3,0.3608]
[1738774245006,3.2078,2773.0,2772.3,0.3608]
[1738774245202,3.2078,2772.7,2772.4,4.67242132]
[1738774245407,1.736,2774.2,2772.2,4.20714127]
[1738774245611,3.2078,2772.8,2772.2,4.20714127]
[1738774245904,3.2078,2773.3,2772.2,4.20714127]
[1738774246105,3.2078,2773.2,2772.3,4.67242132]
[1738774246411,3.2078,2773.2,2772.2,4.21080977]
[1738774246412,3.2078,2772.7,2772.2,0.0036685]
[1738774247013,0.00540317,2772.8,2772.2,0.0036685]
[1738774247206,3.2078,2772.5,2772.2,0.0036685]
[1738774248914,0.00540317,2772.8,2772.2,3.2114685]
[1738774249413,3.2078,2774.2,2772.7,7.41494127]
[1738774249614,3.2078,2774.2,2773.3,3.2078]
[1738774250116,3.2078,2774.8,2773.6,3.2078]
[1738774250611,3.2078,2774.5,2773.6,3.2078]
[1738774250912,3.21320317,2774.5,2773.9,0.00540317]
[1738774251504,0.01373,2774.2,2773.9,0.00540317]
[1738774251909,0.01373,2774.2,2773.9,3.21320317]
[1738774254009,0.01373,2774.2,2773.9,0.00540317]
[1738774254211,3.2078,2774.1,2773.9,0.00540317]
[1738774254908,8.2078,2774.1,2773.2,3.2078]
[1738774255103,3.2078,2773.8,2772.8,3.2078]
[1738774255516,3.2078,2773.5,2772.4,44.0078]
[1738774255715,3.2078,2773.5,2772.4,44.3686]
[1738774256015,3.2078,2773.5,2772.4,44.0078]
[1738774256213,3.2078,2773.5,2772.7,0.0036685]
[1738774256612,3.2078,2773.1,2772.7,0.0036685]
[1738774257010,0.72103,2773.4,2772.7,0.0036685]
[1738774257313,3.2078,2773.4,2772.7,0.0036685]
[1738774257816,3.2078,2773.1,2772.7,0.0036685]
[1738774258311,3.2078,2773.2,2772.7,0.0036685]
[1738774258915,3.2078,2772.9,2772.7,0.0036685]
[1738774259115,3.2078,2772.9,2771.5,1.726]
[1738774259116,3.92895,2772.9,2771.8,4.20714127]
[1738774259317,3.2078,2772.6,2771.4,4.20714127]
[1738774259512,3.2078,2772.6,2771.5,3.5686]
[1738774259821,3.2078,2772.3,2771.5,3.2078]
[1738774260513,5.93314127,2773.4,2771.5,3.2078]
[1738774260514,3.2078,2772.0,2771.5,3.2078]
[1738774260714,3.2078,2772.0,2771.0,7.77574127]
[1738774261016,0.00540317,2772.2,2771.0,7.77574127]
[1738774261017,3.2078,2771.5,2771.0,3.2078]
[1738774261513,0.00540317,2772.2,2771.4,7.41494127]
[1738774261719,0.00540317,2772.2,2772.1,3.2078]
[1738774261917,0.5881,2773.3,2772.1,3.92915]
[1738774262214,0.5881,2773.3,2773.0,3.2078]
[1738774262412,0.5886,2774.0,2773.1,40.8]
[1738774262612,3.22153,2774.2,2773.3,3.2078]
[1738774263218,3.2078,2773.9,2773.5,0.00541311]
[1738774264209,3.2078,2773.6,2773.5,0.00541311]
[1738774264413,3.2078,2773.6,2772.4,3.2078]
[1738774264716,5.00541311,2774.0,2772.4,3.2078]
[1738774264717,3.7628,2773.5,2772.4,3.2078]
[1738774264919,3.2078,2773.5,2772.7,3.2078]
[1738774265115,3.2078,2773.5,2773.0,3.2078]
[1738774265317,0.00541311,2774.0,2773.0,3.2078]
[1738774265514,0.00541311,2774.0,2773.3,3.2078]
[1738774266216,0.00541311,2774.0,2772.9,4.20714127]
[1738774266217,0.00541311,2774.0,2773.0,3.2078]
[1738774266718,3.2078,2773.8,2773.0,3.2078]
[1738774267315,3.2078,2773.8,2773.3,3.2078]
[1738774268115,3.2078,2773.4,2772.8,3.2078]
[1738774268716,3.2078,2773.4,2772.5,3.2078]
[1738774268918,3.2078,2773.1,2772.2,3.2078]
[1738774269118,3.2078,2773.1,2772.3,0.54316347]
[1738774269318,3.2078,2773.1,2772.4,0.54316347]
[1738774269518,3.2078,2773.1,2772.2,7.91689626]
[1738774269822,3.2078,2773.1,2771.8,0.3608]
[1738774269823,3.2078,2772.4,2771.8,0.3608]
[1738774270019,3.2078,2772.8,2771.9,0.54379659]
[1738774270321,0.00541311,2772.4,2771.7,3.2078]
[1738774270623,0.00541311,2772.4,2771.7,7.41494127]
[1738774270816,0.00541311,2772.4,2771.8,0.5447502]
[1738774271016,0.00541311,2772.4,2771.9,0.5447502]
[1738774271216,0.00541311,2772.4,2772.1,7.41494127]
[1738774271421,0.00541311,2772.4,2772.2,0.5447502]
[1738774271616,0.5522,2773.6,2772.3,0.5447502]
[1738774271920,3.2078,2773.7,2772.9,3.2078]
[1738774272123,3.2078,2773.7,2772.4,5.25465741]
[1738774272124,3.2078,2774.1,2773.3,3.2078]
[1738774272324,3.2078,2774.1,2773.4,0.5447502]
[1738774272524,3.2078,2773.8,2772.7,7.82194809]
[1738774272820,3.2078,2773.8,2773.0,0.00541311]
[1738774272821,0.00541311,2773.5,2773.0,0.00541311]
[1738774273017,3.93423311,2773.5,2773.0,0.00541311]
[1738774273216,3.92892,2773.1,2772.1,3.2078]
[1738774273424,3.2078,2772.7,2772.2,0.54559081]
[1738774273622,3.2078,2772.7,2771.8,7.41494127]
[1738774273830,3.2078,2772.4,2771.6,3.2078]
[1738774274120,3.2078,2772.1,2771.2,3.2078]
[1738774274523,3.2078,2772.1,2770.7,45.00714127]
[1738774274524,3.2078,2771.8,2770.9,3.2078]
[1738774274729,0.00541311,2771.9,2771.2,3.2078]
[1738774275223,3.2078,2771.7,2771.2,3.2078]
[1738774276322,0.00541311,2771.9,2771.2,3.2078]
[1738774277224,0.00541311,2771.9,2771.6,3.2078]
[1738774277620,0.00541311,2771.9,2771.7,4.62092041]
[1738774278233,0.00541311,2771.9,2771.8,3.2078]
[1738774279117,1.712,2773.5,2771.9,0.72141]
[1738774279118,3.2078,2773.5,2771.9,0.72141]
[1738774279326,3.2078,2773.5,2772.4,4.20714127]
[1738774279526,3.2078,2773.5,2772.6,3.2078]
[1738774279919,3.2078,2773.5,2772.9,3.2078]
[1738774280227,3.2078,2773.7,2772.7,4.63629069]
[1738774280528,0.00541311,2773.5,2772.9,0.00541311]
[1738774281224,0.00541311,2773.5,2773.3,3.2078]
[1738774282530,0.00541311,2773.5,2773.4,4.74205917]
[1738774282725,0.00541311,2773.5,2773.4,5.46307917]
[1738774283028,0.00541311,2773.5,2773.4,4.74205917]
[1738774283324,0.00541311,2773.5,2773.3,3.2078]
[1738774284123,0.00541311,2773.5,2773.4,9.61573513]
[1738774284325,0.01373,2774.2,2773.8,4.19082005]
[1738774284526,0.01373,2774.2,2774.1,3.2078]
[1738774285229,0.5804,2775.9,2774.4,0.72076]
[1738774285433,0.5804,2775.9,2775.0,3.2078]
[1738774285633,0.00541311,2775.4,2775.0,3.2078]
[1738774285829,0.00541311,2775.4,2775.2,0.00541311]
[1738774286328,0.00541311,2775.4,2775.3,7.9905442]
[1738774286529,0.00541311,2775.4,2775.3,3.2078]
[1738774286934,3.21321311,2775.4,2775.2,0.00541311]
[1738774288125,8.21321311,2775.4,2775.2,0.00541311]
[1738774288434,8.21321311,2775.4,2774.7,3.2078]
[1738774288630,3.2078,2775.1,2774.2,7.39862005]
[1738774288830,3.2078,2775.0,2774.2,7.39862005]
[1738774289328,3.2078,2775.3,2774.5,3.2078]
[1738774291534,0.5538,2775.2,2774.3,0.00541311]
[1738774291732,3.2078,2774.7,2774.3,0.00541311]
[1738774291934,3.2078,2774.8,2774.3,0.00541311]
[1738774292526,0.5538,2775.2,2774.3,4.19623316]
[1738774292832,0.00541311,2775.4,2775.0,3.2078]
[1738774293033,3.21321311,2775.4,2775.0,3.2078]
[1738774293533,0.00541311,2775.4,2775.0,3.2078]
[1738774293929,0.00541311,2775.4,2774.7,3.2078]
[1738774294128,3.2078,2775.0,2774.4,3.756]
[1738774294342,3.2078,2775.0,2774.4,3.2078]
[1738774294640,0.00541311,2775.4,2774.9,3.2078]
[1738774295132,0.00541311,2775.4,2774.6,7.39395336]
[1738774295529,0.00541311,2775.4,2774.7,4.62979276]
[1738774295730,0.00541311,2775.4,2774.6,7.39395336]
[1738774295934,3.2078,2775.3,2774.3,3.21321311]
[1738774296232,3.2078,2775.3,2774.4,4.76786166]
[1738774296439,3.2078,2775.3,2774.6,3.2078]
[1738774296925,3.2078,2775.3,2774.6,7.39395336]
[1738774297131,3.2078,2775.3,2774.6,3.2078]
[1738774298437,3.2078,2775.0,2774.3,0.00541311]
[1738774298642,0.00541311,2775.4,2774.3,4.19156647]
[1738774298841,0.00541311,2775.4,2774.4,4.63332642]
[1738774299037,0.00541311,2775.4,2774.6,0.7207]
[1738774299240,0.00541311,2775.4,2775.0,3.2078]
[1738774300341,0.00541311,2775.4,2775.1,4.68034635]
[1738774301438,0.00541311,2775.4,2775.1,3.2078]
[1738774302130,0.00541311,2775.4,2775.2,4.7455003]
[1738774302839,0.00541311,2775.4,2775.3,0.72053]
[1738774303039,3.2078,2776.6,2775.2,9.7455003]
[1738774303343,3.2078,2776.6,2776.2,3.2078]
[1738774303943,3.2078,2776.6,2775.6,3.2078]
[1738774304142,3.2078,2776.6,2775.3,7.39395336]
[1738774304339,0.00540268,2776.4,2775.8,0.00540268]
[1738774304941,0.00540268,2776.4,2775.9,3.2078]
[1738774305741,0.00540268,2776.4,2776.2,3.2078]
[1738774306342,0.00540268,2776.4,2776.3,4.77183587]
[1738774306738,4.9167,2778.0,2776.3,9.77183587]
[1738774307044,4.9167,2778.0,2777.1,3.2078]
[1738774307938,4.9167,2778.0,2777.3,0.00540268]
[1738774308135,0.00540268,2777.8,2777.3,0.00540268]
[1738774309338,0.00540268,2777.8,2777.7,3.2078]
[1738774309847,3.2078,2779.2,2777.7,8.2214939]
[1738774310139,3.2078,2779.8,2778.3,3.2078]
[1738774310339,3.2078,2779.5,2778.3,3.2078]
[1738774310539,3.2078,2779.5,2778.1,4.18615336]
[1738774310744,3.2078,2779.5,2778.2,3.2078]
[1738774310937,0.00540268,2779.1,2778.5,0.00540268]
[1738774312249,0.00540268,2779.1,2779.0,3.2078]
[1738774312442,0.0080623,2779.9,2779.3,4.18615336]
[1738774312742,0.0080623,2779.9,2779.6,3.2078]
[1738774313244,0.0080623,2779.9,2779.7,8.77452269]
[1738774313641,0.0080623,2779.9,2779.6,3.2078]
[1738774314039,0.0080623,2779.9,2779.8,4.58990592]
[1738774314245,0.0080623,2779.9,2779.7,8.77605928]
[1738774314440,0.0080623,2779.9,2779.7,9.18615336]
[1738774314639,0.0080623,2779.9,2779.8,5.05485329]
[1738774314950,0.0080623,2779.9,2779.7,4.18615336]
[1738774315150,0.0080623,2779.9,2779.6,3.2078]
[1738774315345,0.0080623,2779.9,2779.3,3.2078]
[1738774315554,0.0080623,2779.9,2779.7,8.8301084]
[1738774315942,0.0080623,2779.9,2779.7,9.90554336]
[1738774316249,0.0080623,2779.9,2779.8,4.64395504]
[1738774316647,0.0080623,2779.9,2779.8,9.64395504]
[1738774316944,0.0080623,2779.9,2779.8,10.36331504]
[1738774317344,0.0080623,2779.9,2779.8,4.64395504]
[1738774317545,0.0080623,2779.9,2779.6,3.2078]
[1738774317849,3.2078,2784.3,2781.5,3.2078]
[1738774318049,3.2078,2784.2,2782.9,3.2078]
[1738774318248,3.2078,2784.2,2783.2,3.2078]
[1738774318944,3.2078,2783.6,2783.4,0.00539248]
[1738774319251,0.00355849,2784.0,2783.0,3.2078]
[1738774320139,3.2078,2783.7,2783.1,4.66582947]
[1738774320339,3.2078,2783.7,2783.2,0.00539248]
[1738774320543,3.21135849,2784.0,2783.2,0.00539248]
[1738774320741,0.00355849,2784.0,2783.2,0.00539248]
[1738774320950,0.00355849,2784.0,2783.4,4.18615336]
[1738774321151,0.00355849,2784.0,2783.7,3.2078]
[1738774321350,0.00355849,2784.0,2783.2,0.00539248]
[1738774321351,3.21135849,2784.0,2783.2,0.00539248]
[1738774321538,3.21135849,2784.0,2783.0,3.2078]
[1738774321539,3.2078,2783.3,2782.3,3.2078]
[1738774321744,0.5769,2783.9,2782.0,3.2078]
[1738774321745,3.2078,2782.8,2782.0,3.2078]
[1738774321945,3.2078,2782.8,2781.7,3.2078]
[1738774322144,3.2078,2782.9,2781.7,3.2078]
[1738774322351,0.5875,2783.3,2782.7,3.2078]
[1738774322547,0.5875,2783.3,2781.9,4.18615336]
[1738774322548,0.5875,2783.3,2782.4,4.18615336]
[1738774322749,3.2078,2783.1,2782.4,4.18615336]
[1738774322950,3.2078,2783.1,2778.2,12.92143336]
[1738774322951,5.59289248,2783.3,2782.7,0.00539248]
[1738774323148,3.2078,2782.8,2781.4,7.39395336]
[1738774323355,3.2078,2782.6,2781.4,3.2078]
[1738774323559,3.2078,2782.1,2781.5,4.61140795]
[1738774323753,3.2078,2781.6,2781.0,3.2078]
[1738774323947,0.71864,2782.7,2781.0,3.2078]
[1738774323948,3.2078,2782.2,2781.0,3.2078]
[1738774324344,3.2078,2782.2,2780.1,0.3599]
[1738774324345,3.2078,2781.5,2781.3,0.00539248]
[1738774324555,3.2078,2781.5,2779.9,7.39395336]
[1738774324853,3.2078,2780.1,2779.4,3.2078]
[1738774325057,3.2078,2779.8,2779.4,3.2078]
[1738774325256,3.2078,2779.8,2779.1,3.2078]
[1738774325558,1.865,2780.3,2779.1,3.2078]
[1738774325954,3.21319248,2779.7,2779.2,0.00539248]
[1738774326547,0.00539248,2779.7,2779.4,7.39395336]
[1738774326754,3.2078,2781.6,2779.4,7.39395336]
[1738774326953,3.2078,2781.9,2780.6,3.2078]
[1738774327254,0.07189589,2781.8,2780.6,3.2078]
[1738774327559,0.07189589,2781.8,2779.6,0.7194]
[1738774327560,0.07189589,2781.8,2781.5,3.2078]
[1738774327756,0.07189589,2781.8,2781.5,7.39395336]
[1738774328064,0.07189589,2781.8,2781.6,4.75919023]
[1738774328358,0.07189589,2781.8,2781.5,3.2078]
[1738774328855,0.07189589,2781.8,2781.6,4.6905627]
[1738774329055,0.07189589,2781.8,2781.5,7.39395336]
[1738774329247,0.00539248,2781.9,2781.7,4.58886139]
[1738774329551,0.00539248,2781.9,2781.5,7.39395336]
[1738774329552,0.00539248,2781.9,2781.8,3.2078]
[1738774329955,0.00539248,2781.9,2781.8,7.79666139]
[1738774330154,0.00539248,2781.9,2781.8,8.2078]
[1738774330356,0.00539248,2781.9,2781.8,12.93124476]
[1738774331260,0.00539248,2781.9,2781.8,7.93124476]
[1738774331957,3.2078,2783.3,2781.8,7.93124476]
[1738774332253,3.2078,2783.3,2782.3,3.2078]
[1738774332458,3.2078,2783.3,2782.6,3.2078]
[1738774332657,3.2078,2783.3,2782.3,3.2078]
[1738774332856,3.2078,2782.4,2782.1,4.57859415]
[1738774333057,3.2078,2782.4,2782.1,1.93149415]
[1738774333258,5.0,2782.4,2781.4,0.00539248]
[1738774333559,0.00539248,2782.5,2781.4,0.00539248]
[1738774333560,0.00539248,2782.5,2781.5,7.85823095]
[1738774333864,0.00539248,2782.5,2782.4,3.2078]
[1738774335261,0.00539248,2782.5,2782.1,3.2078]
[1738774335452,0.00539248,2782.5,2781.6,3.2078]
[1738774335657,3.2078,2782.2,2781.6,3.2078]
[1738774335858,3.2078,2782.2,2781.2,3.2078]
[1738774336552,3.21319248,2782.5,2781.3,3.2078]
[1738774336758,3.2078,2781.9,2781.3,3.2078]
[1738774337350,3.2078,2781.9,2780.8,3.2078]
[1738774337555,3.2078,2782.3,2781.5,4.70357233]
[1738774337762,0.00539248,2782.5,2781.7,3.2078]
[1738774337966,3.2078,2782.4,2781.7,3.2078]
[1738774338154,3.2078,2782.3,2781.4,3.21319248]
[1738774338355,0.00539248,2782.5,2782.1,3.2078]
[1738774338557,0.00539248,2782.5,2781.8,4.62670926]
[1738774338558,3.2078,2782.2,2781.8,4.62670926]
[1738774338755,3.2078,2782.2,2781.4,0.00539248]
[1738774338756,3.2078,2781.9,2781.4,0.00539248]
[1738774338954,3.2078,2781.6,2781.4,0.00539248]
[1738774339460,3.2078,2782.0,2781.4,0.00539248]
[1738774340265,3.2078,2781.7,2781.4,0.00539248]
[1738774340461,0.71892,2781.6,2781.4,0.00539248]
[1738774340657,8.2078,2781.7,2780.4,3.2078]
[1738774340858,3.2078,2781.7,2781.2,3.2078]
[1738774341058,3.2078,2781.7,2780.9,3.2078]
[1738774341264,3.2078,2781.7,2780.5,3.2078]
[1738774341458,3.2078,2780.7,2780.2,3.2078]
[1738774341759,3.2078,2781.3,2780.8,0.00539248]
[1738774342264,3.2078,2781.8,2780.9,3.2078]
[1738774342566,0.00539248,2781.3,2780.9,7.97353648]
[1738774342961,0.00539248,2781.3,2780.8,0.00539248]
[1738774343567,0.00539248,2781.3,2781.0,3.2078]
[1738774344265,3.2078,2783.4,2781.1,9.1313628]
[1738774344463,3.2078,2783.4,2782.7,3.2078]
[1738774344663,7.39395336,2784.1,2783.0,3.2078]
[1738774344964,7.39395336,2784.1,2781.2,0.9466]
[1738774344965,3.2078,2783.6,2782.5,3.2078]
[1738774345162,3.9262,2783.6,2782.3,4.56814892]
[1738774345355,0.5605,2783.5,2782.2,3.2078]
[1738774345557,0.00539248,2783.3,2782.8,0.00539248]
[1738774345755,3.2078,2782.9,2782.8,0.00539248]
[1738774345955,0.00539248,2783.3,2782.8,0.00539248]
[1738774346161,0.00539248,2783.3,2782.8,3.21319248]
[1738774346363,0.00539248,2783.3,2783.1,3.2078]
[1738774347162,0.00539248,2783.3,2783.2,4.74788659]
[1738774347471,0.00539248,2783.3,2783.1,3.2078]
[1738774347868,0.00539248,2783.3,2783.2,4.69646904]
[1738774348271,0.00539248,2783.3,2783.1,3.2078]
[1738774348968,0.00539248,2783.3,2782.8,3.21319248]
[1738774349173,3.2078,2783.1,2782.8,0.00539248]
[1738774349864,3.21319248,2783.3,2782.8,0.00539248]
[1738774350886,0.00539248,2783.3,2782.8,0.00539248]
[1738774351078,3.2078,2783.1,2782.8,0.00539248]
[1738774351287,0.00539248,2783.3,2782.8,0.00539248]
[1738774351783,3.2078,2783.0,2782.8,0.00539248]
[1738774351974,0.71861,2782.8,2781.6,3.2078]
[1738774352175,3.2078,2782.4,2781.6,3.2078]
[1738774352383,3.2078,2782.4,2780.8,40.8]
[1738774352384,3.2078,2781.7,2781.0,3.2078]
[1738774352587,3.2078,2782.1,2781.3,3.2078]
[1738774352788,3.2078,2781.4,2781.0,4.69323215]
[1738774352982,3.2078,2781.4,2780.6,3.2078]
[1738774353287,3.2078,2781.4,2780.9,0.00539248]
[1738774354081,3.2078,2781.3,2780.9,0.00539248]
[1738774354986,3.2078,2781.0,2780.9,0.00539248]
[1738774355583,3.2078,2781.0,2779.9,3.2078]
[1738774355584,8.2078,2781.0,2779.9,3.2078]
[1738774355783,3.2078,2780.8,2779.9,3.2078]
[1738774356181,3.2078,2781.3,2780.6,3.2078]
[1738774356385,0.00539248,2781.5,2780.6,3.2078]
[1738774356684,0.71873,2782.3,2780.0,4.77999913]
[1738774356685,3.2078,2782.2,2781.2,7.39395336]
[1738774356893,3.2078,2782.8,2782.0,3.2078]
[1738774357081,0.5349,2783.2,2782.0,3.2078]
[1738774357778,0.5349,2783.2,2781.6,4.18615336]
[1738774357779,4.4612,2783.2,2781.6,3.2078]
[1738774357988,0.00539248,2782.9,2782.3,0.00539248]
[1738774360181,0.00539248,2782.9,2782.6,3.2078]
[1738774360386,0.00539248,2782.9,2782.3,3.21319248]
[1738774360988,3.2078,2782.8,2782.3,0.00539248]
[1738774361290,3.2078,2782.5,2782.3,0.00539248]
[1738774361492,3.2078,2782.5,2781.1,3.2078]
[1738774361985,3.92647,2782.5,2781.1,3.2078]
[1738774362182,3.2078,2781.9,2781.1,3.2078]
[1738774362787,3.2078,2781.9,2781.2,0.00539248]
[1738774362988,3.92662,2781.9,2781.2,0.00539248]
[1738774363283,3.2078,2781.9,2781.2,0.00539248]
[1738774363484,3.2078,2781.6,2781.2,0.00539248]
[1738774363694,3.92671,2781.6,2781.2,0.00539248]
[1738774363892,1.25254,2781.5,2781.2,0.00539248]
[1738774364191,3.2078,2781.3,2780.1,3.2078]
[1738774364686,3.2078,2780.8,2780.1,3.2078]
[1738774364891,3.2078,2782.3,2780.7,3.2078]
[1738774365187,3.2078,2782.7,2781.0,3.2078]
[1738774365487,0.00539248,2781.8,2781.2,0.00539248]
[1738774365885,3.2078,2781.3,2781.2,0.00539248]
[1738774366187,3.21319248,2781.8,2781.2,0.00539248]
[1738774367891,3.2078,2781.3,2781.2,0.00539248]
[1738774368388,8.2078,2781.3,2781.2,0.00539248]
[1738774368590,3.2078,2781.3,2781.2,0.00539248]
[1738774368791,12.39395336,2781.3,2779.9,3.2078]
[1738774369088,3.2078,2780.1,2779.1,3.2078]
[1738774369592,0.71915,2780.7,2779.1,3.2078]
[1738774369593,3.2078,2780.7,2779.4,3.2078]
[1738774369890,2.9934,2781.2,2779.0,4.18615336]
[1738774369891,0.00539248,2780.3,2779.7,3.2078]
[1738774370891,0.00539248,2780.3,2779.4,3.2078]
[1738774371090,0.00539248,2780.3,2779.0,4.18615336]
[1738774371091,3.2078,2780.1,2779.0,3.2078]
[1738774372087,0.71928,2780.2,2778.6,0.5807]
[1738774372088,5.81513,2780.0,2778.6,0.5807]
[1738774372284,3.2078,2779.8,2778.6,0.5807]
[1738774372592,5.0958,2780.0,2778.6,0.5807]
[1738774372896,3.2078,2779.3,2778.6,0.5807]
[1738774373293,3.2078,2779.0,2778.4,3.2078]
[1738774373688,3.2078,2779.3,2778.4,3.2078]
[1738774374293,3.2078,2778.5,2777.8,0.5521]
[1738774374496,3.2078,2778.1,2777.4,3.2078]
[1738774375093,0.00539248,2778.4,2777.7,3.2078]
[1738774375289,0.00539248,2778.4,2778.0,3.2078]
[1738774375489,0.00539248,2778.4,2778.3,3.2078]
[1738774377496,3.2078,2779.7,2778.3,3.2078]
[1738774377695,3.2078,2779.7,2779.0,3.2078]
[1738774377996,0.5483,2780.2,2779.6,3.2078]
[1738774378200,3.2078,2780.7,2779.6,3.2078]
[1738774378693,0.00539248,2780.4,2779.9,0.00539248]
[1738774380090,0.00539248,2780.4,2780.0,3.2078]
[1738774380293,0.00539248,2780.4,2779.9,0.00539248]
[1738774380898,0.00539248,2780.4,2779.9,3.21319248]
[1738774381197,3.2078,2781.9,2780.3,3.2078]
[1738774381496,3.2078,2782.4,2781.1,3.2078]
[1738774381795,3.2078,2782.4,2781.7,3.2078]
[1738774382097,3.2078,2782.8,2782.2,3.2078]
[1738774382492,3.21319248,2782.8,2782.2,3.21319248]
[1738774383495,3.2078,2782.3,2782.2,0.00539248]
[1738774383695,3.2078,2782.7,2782.2,0.00539248]
[1738774384302,8.2078,2782.7,2782.2,0.00539248]
[1738774384597,0.71871,2782.1,2780.9,3.2078]
[1738774384787,3.2078,2781.6,2780.9,3.2078]
[1738774384991,3.2078,2781.5,2780.9,3.2078]
[1738774385204,3.2078,2781.4,2780.1,3.2078]
[1738774385693,3.2078,2781.1,2780.1,3.2078]
[1738774385895,0.00539248,2781.0,2780.5,0.00539248]
[1738774386087,3.2078,2780.8,2780.5,0.00539248]
[1738774386597,0.00539248,2781.0,2780.5,0.00539248]
[1738774386598,0.00539248,2781.0,2780.7,3.2078]
[1738774386793,3.2078,2782.4,2780.7,3.2078]
[1738774386988,3.2078,2782.4,2781.3,3.2078]
[1738774387194,3.2078,2782.4,2781.0,3.2078]
[1738774387495,3.2078,2782.4,2781.7,3.2078]
[1738774388000,0.00539248,2782.3,2782.1,3.2078]
[1738774388199,0.00539248,2782.3,2781.6,3.2078]
[1738774388498,0.00539248,2782.3,2781.7,0.00539248]
[1738774389791,0.00539248,2782.3,2781.7,3.21319248]
[1738774391197,3.2078,2782.1,2781.7,0.00539248]
[1738774392197,0.00539248,2782.3,2781.7,0.00539248]
[1738774392895,0.00539248,2782.3,2781.7,3.21319248]
[1738774393301,0.00539248,2782.3,2782.0,3.2078]
[1738774394198,5.00539248,2782.3,2781.7,0.00539248]
[1738774394404,0.00539248,2782.3,2781.7,0.00539248]
[1738774394697,0.00539248,2782.3,2781.7,3.21319248]
[1738774396103,0.00539248,2782.3,2781.7,0.00539248]
[1738774398104,3.2078,2782.1,2781.7,0.00539248]
[1738774398798,3.2078,2781.8,2781.7,0.00539248]
[1738774398999,3.2078,2781.8,2780.3,3.7824]
[1738774399198,0.7189,2781.4,2780.3,3.7824]
[1738774399408,3.2078,2781.0,2780.3,3.7824]
[1738774399707,0.5765,2781.7,2780.3,3.7824]
[1738774399708,0.71886,2781.5,2780.3,3.7824]
[1738774399904,0.71886,2781.5,2780.3,3.2078]
[1738774399905,3.2078,2781.5,2780.3,3.2078]
[1738774400203,0.71891,2781.3,2780.6,0.00539248]
[1738774400404,3.2078,2781.2,2780.6,0.00539248]
[1738774401200,3.2078,2780.9,2780.6,0.00539248]
[1738774402905,5.0328,2780.9,2780.6,0.00539248]
[1738774403205,0.5648,2781.4,2780.6,0.00539248]
[1738774403206,3.7726,2781.4,2780.6,0.00539248]
[1738774404210,4.18615336,2780.7,2779.5,0.5796]
[1738774404504,3.2078,2780.1,2779.4,3.2078]
[1738774404706,6.01015336,2780.3,2779.4,3.2078]
[1738774404899,3.2078,2780.0,2779.4,3.2078]
[1738774405105,1.824,2780.3,2779.7,3.2078]
[1738774405306,0.5327,2780.6,2779.7,3.2078]
[1738774405514,0.00539248,2780.3,2780.0,3.2078]
[1738774405912,0.00539248,2780.3,2779.7,3.2078]
[1738774406610,0.00539248,2780.3,2780.0,3.2078]
[1738774409707,3.2078,2780.1,2779.4,3.2078]
[1738774409909,3.2078,2780.0,2779.0,3.2078]
[1738774410108,5.99515336,2779.9,2779.0,3.2078]
[1738774410310,5.99515336,2779.9,2778.8,0.5396]
[1738774410311,3.2078,2779.5,2778.8,0.5396]
[1738774410612,3.2078,2779.5,2778.6,3.2078]
[1738774410613,0.71941,2779.4,2778.6,3.2078]
[1738774410811,3.92721,2779.4,2778.3,3.2078]
[1738774411117,0.71943,2779.3,2778.3,3.2078]
[1738774411419,0.00539248,2779.1,2778.0,3.2078]
[1738774411608,4.19154584,2779.1,2778.0,3.2078]
[1738774412112,3.2078,2778.7,2778.0,3.2078]
[1738774412303,3.2078,2778.7,2777.7,4.3481]
[1738774412505,1.802,2778.8,2777.7,1.1403]
[1738774412906,1.802,2778.8,2777.6,3.2078]
[1738774412907,0.71959,2778.7,2777.6,3.2078]
[1738774413111,0.00539248,2779.1,2778.5,3.2078]
[1738774413317,0.00539248,2779.1,2779.0,3.2078]
[1738774414008,0.00539248,2779.1,2778.7,3.2078]
[1738774415715,3.2078,2778.9,2778.2,3.2078]
[1738774417314,0.00539248,2779.1,2778.2,3.2078]
[1738774418114,3.2078,2778.9,2778.2,3.2078]